[Event "CCT Chessable Masters Playoffs 2025"]
[Site "Online"]
[Date "2025.02.20"]
[Round "56"]
[White "Nakamura, Hikaru"]
[Black "Nepomniachtchi, Ian"]
[Result "1/2-1/2"]
[Annotator "TA"]
[ECO "A06"]
[WhiteElo "2802"]
[BlackElo "2754"]
[PlyCount "80"]
[EventDate "2025.02.13"]
[EventType "k.o."]
[EventCountry "NET"]
[SourceTitle "playchess.com"]
[Source "ChessBase"]
[SourceQuality "1"]
[TimeControl "600"]

{[%evp 9,80,0,38,37,40,34,57,42,50,50,43,41,56,66,66,41,73,14,27,18,26,0,8,4,28,39,47,29,22,5,5,-6,0,0,0,0,0,0,26,26,14,0,0,0,0,0,0,0,0,0,0,0,0,-9,-10,-14,-13,-37,-31,-43,0,0,0,0,0,0,0,0,0,0,0,0,0]} 1. b3 {[%emt 0:00:00]} d5 {[%emt 0:00:01]} 2. Bb2 {[%emt 0:00:01]} Nf6 {[%emt 0:00:01]} 3. Nf3 {[%emt 0:00:00]} Bf5 {[%emt 0:00:01]} 4. Nh4 {[%emt 0:00:01]} Bd7 {[%emt 0:00:01]} 5. g3 {[%emt 0:00:00]} g6 {[%emt 0:00:11]} 6. Bg2 {[%emt 0:00:06][%cal Og2d5]} c6 {[%emt 0:00:17]} 7. c4 {[%emt 0:00:01]} Be6 {[%emt 0:00:04]} 8. d3 {[%emt 0:00:03] White is slightly better.} Bg7 {[%emt 0:00:01]} 9. O-O {[%emt 0:00:01]} O-O {[%emt 0:00:01]} 10. Nf3 {[%emt 0:00:01]} a5 {[%emt 0:00:04]} 11. Nc3 {[%emt 0:00:01]} Na6 {[%emt 0:00:19]} 12. Rc1 {[%emt 0:00:22]} h6 {[%emt 0:00:18]} 13. Nd4 {[%emt 0:00:20]} (13. Qd2 $16) 13... Bd7 {[%emt 0:00:20]} 14. cxd5 {[%emt 0:00:04]} Nxd5 {[%emt 0:00:03]} 15. Nxd5 {[%emt 0:00:06]} cxd5 {[%emt 0:00:01]} 16. Qd2 {[%emt 0:00:07]} e6 {[%emt 0:00:31]} 17. Nf3 {[%emt 0:00:07]} Nb4 {[%emt 0:00:05]} 18. Bxg7 {[%emt 0:00:31]} Kxg7 {[%emt 0:00:01]} 19. a3 {[%emt 0:00:00]} Nc6 {[%emt 0:00:00]} 20. Rc5 {[%emt 0:00:01]} Qf6 {[%emt 0:00:14]} 21. Rfc1 {[%emt 0:00:03]} Rfc8 {[%emt 0:00:01]} 22. e4 {[%emt 0:00:55]} b6 {[%emt 0:00:08]} 23. R5c2 {[%emt 0:00:15]} Nd4 {[%emt 0:00:57]} 24. Nxd4 {[%emt 0:00:10]} Qxd4 {[%emt 0:00:00]} 25. Qe3 {[%emt 0:00:01]} Qxe3 {[%emt 0:00:07]} 26. fxe3 {[%emt 0:00:00]} dxe4 {[%emt 0:00:07]} 27. Rc7 {[%emt 0:00:08]} Kf8 {[%emt 0:00:56]} 28. Bxe4 {[%emt 0:00:07]} Rab8 {[%emt 0:00:01]} 29. R1c4 {[%emt 0:00:24]} Rxc7 {[%emt 0:00:02]} 30. Rxc7 $11 {[%emt 0:00:00][%mdl 4096] Endgame KRB-KRB} Ke8 {[%emt 0:00:00]} 31. h4 {[%emt 0:00:45]} Kd8 {[%emt 0:00:02]} 32. Ra7 {[%emt 0:00:01]} Rc8 {[%emt 0:00:05]} 33. Ra6 {[%emt 0:01:49]} f5 {[%emt 0:00:06]} 34. Bf3 {[%emt 0:00:03]} Rc1+ {[%emt 0:00:02]} 35. Kf2 {[%emt 0:00:02] The position is equal.} Rc2+ {[%emt 0:00:17]} 36. Ke1 {[%emt 0:00:08]} Kc7 {[%emt 0:00:01]} 37. Ra7+ $1 {[%emt 0:00:02]} Kd6 {[%emt 0:00:24]} 38. Ra6 {[%emt 0:00:13]} Kc7 {[%emt 0:00:00]} 39. Ra7+ {[%emt 0:00:02]} Kd6 {[%emt 0:00:11]} 40. Ra6 {[%emt 0:00:02]} Kc7 {[%emt 0:00:01] Weighted Error Value: White=0.07 (flawless) /Black=0.07 (flawless)   Mistake:       	White=1     	---        Inaccurate:     	---       	Black=3      OK:         	White=14    	Black=17     Best:        	White=2     	---        Strong:       	White=1     	---} 1/2-1/2

[Event "CCT Chessable Masters Playoffs 2025"]
[Site "Online"]
[Date "2025.02.20"]
[Round "56"]
[White "Nepomniachtchi, Ian"]
[Black "Nakamura, Hikaru"]
[Result "1/2-1/2"]
[Annotator "TA"]
[ECO "C54"]
[WhiteElo "2754"]
[BlackElo "2802"]
[PlyCount "185"]
[EventDate "2025.02.13"]
[EventType "k.o."]
[EventCountry "NET"]
[SourceTitle "playchess.com"]
[Source "ChessBase"]
[SourceQuality "1"]
[TimeControl "600"]

{[%evp 10,185,33,32,45,39,49,24,27,33,39,27,29,33,47,31,34,33,27,29,34,0,0,-8,0,-11,-7,-21,-15,-12,-18,-47,-34,-47,-38,-66,-67,-84,-69,-101,-65,-84,0,-144,-54,-106,-97,-101,-118,-149,-175,-151,-118,-123,-112,-104,-97,-92,-86,-92,-85,-96,-77,-145,-145,-126,-152,-231,-232,-235,-149,-151,-150,-156,-150,-146,-134,-170,-3,-2,-3,-41,-35,-266,-279,-279,-274,-277,-250,-258,-261,-318,-320,-391,-383,-348,-268,-425,-366,-379,-360,-470,-392,-381,-369,-354,-352,-300,-168,-178,-148,-144,-152,-213,-134,-133,-23,-23,-29,-29,-29,-31,-27,-38,-23,-23,-23,-83,-69,-75,-72,-69,0,0,0,-74,-23,-31,-31,-31,-31,-83,-83,-83,-84,-84,0,-84,-84,-77,-8,-83,-83,-83,-88,-114,-70,-70,-70,-70,-60,-70,-64,-64,-8,-8,0,0,0,0,0,0,0,0,0,0,0,0]} 1. e4 {[%emt 0:00:00]} e5 {[%emt 0:00:01]} 2. Nf3 {[%emt 0:00:01]} Nc6 {[%emt 0:00:00]} 3. Bc4 {[%emt 0:00:00]} Nf6 {[%emt 0:00:01]} 4. d3 {[%emt 0:00:01]} h6 {[%emt 0:00:01]} 5. c3 {[%emt 0:00:01]} Bc5 {[%emt 0:00:01]} 6. b4 {[%emt 0:00:01]} Be7 {[%emt 0:00:00] C54: Giuoco Piano: 4 c3 Nf6, main lines with 5 d4 and 5 d3.} 7. a4 {[%emt 0:00:03] 7.Qb3 gains popularity.} d6 {[%emt 0:00:02][%cal Bd7d6,Bd6d5][%mdl 32]} 8. Qb3 {[%emt 0:00:02]} O-O {[%emt 0:00:01] White has an edge.} 9. O-O {[%emt 0:00:01]} Nb8 {[%emt 0:00:03]} 10. a5 {[%emt 0:00:00]} c6 {[%emt 0:00:03]} 11. Qa2 {[%emt 0:00:01]} d5 {[%emt 0:00:10]} 12. Bb3 {[%emt 0:00:01]} Qc7 {[%emt 0:00:01]} 13. Re1 {[%emt 0:00:03][%cal Re4d5]} Re8 {[%emt 0:00:09]} 14. Nbd2 {[%emt 0:00:20][%cal Re4d5]} Be6 {[%emt 0:00:06]} 15. Bb2 {[%emt 0:00:13][%cal Of3e5]} Nbd7 {[%emt 0:00:04]} 16. Nf1 $146 {[%emt 0:00:29]} ({Predecessor:} 16. h3 Bf8 17. Nf1 a6 18. Rad1 dxe4 19. dxe4 c5 20. Bxe6 Rxe6 21. Qb3 b6 22. Ra1 cxb4 23. cxb4 bxa5 24. bxa5 {½-½ Caruana,F (2782)-Praggnanandhaa,R (2690) FIDE World Cup 2023 (7.6)}) 16... Bf8 {[%emt 0:00:05]} 17. N3d2 {[%emt 0:00:10]} Rad8 {[%emt 0:00:07]} 18. Ne3 {[%emt 0:00:01]} b5 {[%emt 0:01:37]} 19. axb6 {[%emt 0:00:14]} (19. exd5 cxd5 20. Red1 (20. Nxd5 $2 Bxd5 21. Bxd5 Nxd5 $19) (20. Bxd5 $2 Nxd5 21. Nxd5 Bxd5 $19) 20... a6) 19... axb6 {[%emt 0:00:02]} 20. Rad1 {[%emt 0:00:54]} Ra8 {[%emt 0:00:19]} 21. Qb1 {[%emt 0:00:01]} b5 {[%emt 0:00:02]} 22. h3 {[%emt 0:00:20]} Rad8 {[%emt 0:00:01]} 23. Qa2 {[%emt 0:00:02]} Nb6 $36 {[%emt 0:00:03][%mdl 2048] Black fights for an advantage.} 24. Nef1 {[%emt 0:00:22]} Ra8 {[%emt 0:00:40]} 25. Qb1 {[%emt 0:00:01]} Rad8 {[%emt 0:00:05]} (25... Nh5 $142 26. Bc1 Na4) 26. Qa2 $1 $17 {[%emt 0:00:03] [#]} Rd7 {[%emt 0:00:01]} (26... Nh5 $1 $17 27. Bc1 d4 28. cxd4 exd4 (28... Bxb4 29. Bxe6 Rxe6 30. dxe5 $17) 29. Bxe6 Rxe6) 27. Bc1 {[%emt 0:00:04]} (27. Ng3 $15) 27... d4 {[%emt 0:00:08]} 28. Bxe6 {[%emt 0:00:33]} Rxe6 {[%emt 0:00:00]} 29. Qb3 {[%emt 0:00:46]} dxc3 {[%emt 0:00:07]} 30. Qxc3 {[%emt 0:00:00]} Qd6 {[%emt 0:00:01]} 31. Nf3 {[%emt 0:00:09]} Qxb4 {[%emt 0:00:01]} 32. Qa1 {[%emt 0:00:10][%cal Oc1e3]} Qe7 {[%emt 0:00:07]} 33. Bb2 {[%emt 0:00:05][%cal Rb2e5]} Ra7 {[%emt 0:00:02]} 34. Qb1 {[%emt 0:00:08]} Na4 {[%emt 0:00:01]} 35. Ba1 {[%emt 0:00:02]} Qe8 {[%emt 0:00:20]} 36. d4 {[%emt 0:00:16]} (36. Ne3 $142) 36... exd4 {[%emt 0:00:00]} 37. Nxd4 {[%emt 0:00:00]} Rxe4 {[%emt 0:00:05]} 38. Ng3 {[%emt 0:00:00]} (38. Ne3 $17) 38... Rxe1+ $19 {[%emt 0:00:02]} 39. Rxe1 {[%emt 0:00:01]} Re7 {[%emt 0:00:01]} 40. Rxe7 {[%emt 0:00:04]} Qxe7 {[%emt 0:00:12]} 41. Nxc6 {[%emt 0:00:26]} Qc5 {[%emt 0:00:01]} 42. Ne5 {[%emt 0:00:13] [#]} Qd5 $1 {[%emt 0:00:15]} 43. Nd3 {[%emt 0:00:07]} Nh5 $2 {[%emt 0:00:25]} (43... Nd7 $19 {[%cal Ob5b4]} 44. Ne2 Ndc5 45. Nxc5 Qxc5 (45... Nxc5 46. Nd4 $15) (45... Bxc5 $2 46. Qc2 $19)) 44. Nxh5 $11 {[%emt 0:00:07]} Qxh5 {[%emt 0:00:00]} 45. Ne5 $1 {[%emt 0:00:00]} Qe2 {[%emt 0:01:44]} 46. Qb3 $2 {[%emt 0:00:16]} (46. Bd4 $1 $15) 46... Qe1+ $19 {[%emt 0:00:03]} 47. Kh2 {[%emt 0:00:01]} Qxf2 {[%emt 0:00:03]} (47... Qxa1 48. Qxf7+ Kh7 49. Qf5+ Kg8 50. Qf7+ Kh7 51. Qg6+ Kg8 52. Qf7+ $11) 48. Bd4 {[%emt 0:00:28]} Qf5 {[%emt 0:00:13][%cal Ob5b4]} (48... Qxd4 49. Qxf7+ Kh7 50. Qf5+ Kg8 51. Qe6+ Kh7 52. Qf5+ Kg8 53. Qe6+ Kh7 54. Qf5+ $11) 49. Nf3 {[%emt 0:00:31]} Qf4+ {[%emt 0:00:04]} 50. Kg1 {[%emt 0:00:03]} Qc1+ {[%emt 0:00:05]} 51. Kh2 {[%emt 0:00:01]} Bd6+ {[%emt 0:00:04]} 52. g3 {[%emt 0:00:01]} Qc4 {[%emt 0:00:15]} 53. Qe3 {[%emt 0:00:17]} (53. Qxc4 $142 bxc4 54. Kg2) 53... Qc2+ {[%emt 0:00:06]} 54. Kg1 {[%emt 0:00:01]} Kh7 {[%emt 0:00:09][%cal Ob5b4]} (54... Bxg3 55. Qe8+ Kh7 56. Qxf7 $19) 55. Ne5 {[%emt 0:00:06]} Qb1+ {[%emt 0:00:12]} 56. Kg2 {[%emt 0:00:05]} Qf5 {[%emt 0:00:01]} 57. g4 {[%emt 0:00:04]} Qc2+ {[%emt 0:00:01]} 58. Kf3 {[%emt 0:00:05]} f6 {[%emt 0:00:14]} (58... b4 $142 59. Nxf7 Bc5 60. Qe4+ Qxe4+ 61. Kxe4 b3) 59. Nd3 {[%emt 0:00:05]} Qc4 {[%emt 0:00:11]} 60. Qe4+ {[%emt 0:00:01]} Kg8 {[%emt 0:00:01]} 61. Ke3 {[%emt 0:00:12]} (61. Qe8+ $17 {was necessary.} Bf8 62. Ke3) 61... Bf8 {[%emt 0:00:07]} 62. Qe8 {[%emt 0:00:08]} Nc3 {[%emt 0:00:06]} (62... Qb3 $17 {aiming for ...b4.} 63. Qc6 b4) 63. Bxc3 $11 {[%emt 0:00:02]} Qxc3 {[%emt 0:00:01]} 64. Qxb5 {[%emt 0:00:00][%mdl 4096] Endgame KQB-KQN. Black is a pawn up.} Qc7 {[%emt 0:00:01]} 65. Qd5+ {[%emt 0:00:01]} Kh8 {[%emt 0:00:01]} 66. Kf3 {[%emt 0:00:02] Active counter play!} Qh2 {[%emt 0:00:03]} 67. Nf2 {[%emt 0:00:00] Wards off Qh1+} Bd6 {[%emt 0:00:03]} (67... Qd6 68. Qxd6 Bxd6 69. h4 g6) 68. Qa8+ {[%emt 0:00:01]} (68. h4 $11) 68... Bb8 {[%emt 0:00:00]} 69. Qe4 {[%emt 0:00:00]} Qg3+ {[%emt 0:00:03]} 70. Ke2 {[%emt 0:00:01]} Be5 {[%emt 0:00:02]} ({Better is} 70... Qb3 $15) 71. Qa8+ {[%emt 0:00:01]} Bb8 {[%emt 0:00:00]} (71... Kh7 $11) 72. Qe4 $1 $17 {[%emt 0:00:00]} Qc7 {[%emt 0:00:01]} (72... Qe5 $17) 73. Qe8+ {[%emt 0:00:01]} Kh7 {[%emt 0:00:00]} 74. Qe4+ {[%emt 0:00:00]} g6 {[%emt 0:00:01]} 75. Kf3 {[%emt 0:00:01]} ({White should try} 75. h4 $1 $15) 75... Kg7 {[%emt 0:00:00]} 76. Kg2 {[%emt 0:00:02]} Qg3+ {[%emt 0:00:01]} 77. Kf1 {[%emt 0:00:00]} Qc7 {[%emt 0:00:01] Repels Qe7+} (77... Qe5 $17) 78. Qd5 {[%emt 0:00:01]} (78. Kg2 $1 $11) 78... Ba7 {[%emt 0:00:01]} 79. Nd3 {[%emt 0:00:03]} Qe7 {[%emt 0:00:01]} (79... Qf7 $17 80. Qxf7+ Kxf7) 80. Qf3 {[%emt 0:00:01]} (80. Nf4 $11 {keeps the balance.}) 80... Qd7 {[%emt 0:00:02]} 81. Qe2 {[%emt 0:00:02] [#]} h5 $1 {[%emt 0:00:02]} 82. Qf3 {[%emt 0:00:01] Against Qd5} (82. gxh5 Qxh3+) 82... hxg4 {[%emt 0:00:01]} 83. hxg4 {[%emt 0:00:00]} Qb5 {[%emt 0:00:00]} (83... Qd4 84. Nf4 Qe5 85. Nd3 Qa1+) 84. Kg2 {[%emt 0:00:01]} Qb6 {[%emt 0:00:01]} (84... Qc4 {keeps more tension.} 85. Nf4 Bb6 86. Qf1 Qe4+) 85. Kh3 {[%emt 0:00:01]} Qd4 {[%emt 0:00:01]} 86. Nf4 {[%emt 0:00:01] White threatens Ne6+ and mate.} Kh6 {[%emt 0:00:00]} (86... Qe3 $15 87. Qxe3 Bxe3) 87. Ne6 $11 {[%emt 0:00:03] The position is equal.} Qe5 {[%emt 0:00:03]} (87... Qe3 {simplifies} 88. g5+ fxg5 89. Qxe3 Bxe3 90. Kg4 Bc1) 88. g5+ $1 {[%emt 0:00:04]} fxg5 {[%emt 0:00:05]} 89. Qf8+ {[%emt 0:00:01]} Kh7 $1 {[%emt 0:00:00]} 90. Qf7+ $1 {[%emt 0:00:01]} Kh6 {[%emt 0:00:00]} 91. Qf8+ {[%emt 0:00:01]} Kh7 $1 {[%emt 0:00:01]} 92. Qf7+ {[%emt 0:00:09]} Kh6 {[%emt 0:00:00] ( -> ...Qe3+)} 93. Qf8+ {[%emt 0:00:01] And White is the lucky defender.   Weighted Error Value: White=0.21 (precise) /Black=0.25 (precise)   Loses game:     	White=1     	---        Missed win:     	---       	Black=1      Mistake:       	White=9     	Black=10     Inaccurate:     	White=5     	Black=4      OK:         	White=34    	Black=29     Best:        	White=10    	Black=10     Strong:       	White=5     	Black=2} 1/2-1/2